[Event "15th Avicenna Open Masters 2018"]
[Site "Avicenna"]
[Date "2018.08.17"]
[Round "1"]
[White "Mosadeghpour, Masoud"]
[Black "Hakemi, Arman"]
[Result "1-0"]
[ECO "B96"]
[WhiteElo "2525"]
[BlackElo "2245"]
[Annotator "ChessBase"]
[PlyCount "123"]
[EventDate "2018.08.17"]
[EventType "swiss"]
[EventCountry "IRI"]
[SourceTitle "playchess.com"]
[Source "ChessBase"]
[SourceQuality "1"]
[TimeControl "5400+30"]

1. e4 {[%emt 0:00:00]} c5 {[%emt 0:00:00]} 2. Nf3 {[%emt 0:00:00]} d6 {[%emt 0:00:00]} 3. d4 {[%emt 0:00:35]} cxd4 {[%emt 0:00:22]} 4. Nxd4 {[%emt 0:00:55]} Nf6 {[%emt 0:01:02]} 5. Nc3 {[%emt 0:00:06]} a6 {[%emt 0:00:47]} 6. Bg5 {[%emt 0:02:20]} e6 {[%emt 0:02:58]} 7. f4 {[%emt 0:01:07]} h6 {[%emt 0:01:58]} 8. Bh4 {[%emt 0:00:02]} Qb6 {[%emt 0:00:34]} 9. a3 {[%emt 0:00:26]} Be7 {[%emt 0:00:48]} 10. Bf2 {[%emt 0:03:41]} Qc7 {[%emt 0:00:16]} 11. Qf3 {[%emt 0:01:51]} Nbd7 {[%emt 0:02:52]} 12. O-O-O {[%emt 0:05:47]} b5 {[%emt 0:01:09]} 13. g4 {[%emt 0:14:03]} Bb7 {[%emt 0:06:40]} 14. Qe2 {[%emt 0:13:55]} g5 {[%emt 0:31:11]} 15. f5 {[%emt 0:07:59]} e5 {[%emt 0:04:24]} 16. Nb3 {[%emt 0:01:22]} Bc6 {[%emt 0:09:42]} 17. h4 {[%emt 0:04:17]} Rg8 {[%emt 0:02:14]} 18. hxg5 {[%emt 0:00:33]} hxg5 {[%emt 0:00:07]} 19. Bg2 {[%emt 0:02:33]} Nb6 {[%emt 0:06:39]} 20. Na5 {[%emt 0:10:23]} Rc8 {[%emt 0:08:50]} 21. Nxc6 {[%emt 0:06:37]} Qxc6 {[%emt 0:00:05]} 22. Rh3 {[%emt 0:01:15]} Nc4 {[%emt 0:02:15]} 23. Rdd3 {[%emt 0:08:58]} a5 {[%emt 0:01:53]} 24. Nd5 {[%emt 0:06:20]} b4 {[%emt 0:00:47]} 25. Bf1 {[%emt 0:03:08]} Qb7 {[%emt 0:07:20]} 26. a4 {[%emt 0:03:44]} Qc6 {[%emt 0:04:08]} 27. b3 {[%emt 0:00:01]} Na3 {[%emt 0:00:09]} 28. Rd2 {[%emt 0:00:51]} Nxd5 {[%emt 0:00:37]} 29. exd5 {[%emt 0:00:09]} Qc7 {[%emt 0:00:25]} 30. Qa6 {[%emt 0:01:03]} Bd8 {[%emt 0:04:15]} 31. Bb5+ {[%emt 0:00:53]} Nxb5 {[%emt 0:00:22]} 32. Qxb5+ {[%emt 0:00:28]} Kf8 {[%emt 0:00:20]} 33. Qa6 {[%emt 0:00:36]} Kg7 {[%emt 0:00:26]} 34. Qd3 {[%emt 0:00:22]} Bf6 {[%emt 0:00:13]} 35. Bg1 {[%emt 0:00:39]} Rh8 {[%emt 0:01:09]} 36. Rdh2 {[%emt 0:00:18]} Rxh3 {[%emt 0:00:23]} 37. Rxh3 {[%emt 0:00:23]} Rh8 {[%emt 0:00:36]} 38. Rxh8 {[%emt 0:00:31]} Kxh8 {[%emt 0:00:01]} 39. Qc4 {[%emt 0:00:43]} Qe7 {[%emt 0:00:52]} 40. Qe4 {[%emt 0:00:30]} Qc7 {[%emt 0:00:04]} 41. Kd1 {[%emt 0:00:28]} Kg7 {[%emt 0:00:48]} 42. Be3 {[%emt 0:00:18]} Qd8 {[%emt 0:00:40]} 43. Ke2 {[%emt 0:00:41]} Qc7 {[%emt 0:00:32]} 44. Qc4 {[%emt 0:00:34]} Qd8 {[%emt 0:00:29]} 45. Kd3 {[%emt 0:00:13]} Qh8 {[%emt 0:00:25]} 46. Qe4 {[%emt 0:00:05]} Qc8 {[%emt 0:00:33]} 47. c4 {[%emt 0:00:22]} bxc3 {[%emt 0:00:16]} 48. Kc2 {[%emt 0:00:12]} Qh8 {[%emt 0:00:49]} 49. Kxc3 {[%emt 0:00:13]} Qh2 {[%emt 0:00:19]} 50. Bb6 {[%emt 0:00:57]} Qg3+ {[%emt 0:00:44]} 51. Kc4 {[%emt 0:00:22]} Qh3 {[%emt 0:00:28]} 52. Bxa5 {[%emt 0:00:15]} Qf1+ {[%emt 0:00:05]} 53. Kb4 {[%emt 0:00:37]} Qf2 {[%emt 0:00:42]} 54. Ka3 {[%emt 0:00:54]} Qf4 {[%emt 0:00:44]} 55. Qc4 {[%emt 0:01:06]} e4 {[%emt 0:00:15]} 56. Bb6 {[%emt 0:00:27]} Qxg4 {[%emt 0:00:45]} 57. a5 {[%emt 0:00:00]} Qxf5 {[%emt 0:00:32]} 58. a6 {[%emt 0:00:01]} Qe5 {[%emt 0:00:07]} 59. a7 {[%emt 0:00:28]} Qa1+ {[%emt 0:00:17]} 60. Kb4 {[%emt 0:00:01]} Bb2 {[%emt 0:01:03]} 61. Kb5 {[%emt 0:00:09]} Qa3 {[%emt 0:00:32]} 62. Qa4 {[%emt 0:00:15]} 1-0

[Event "15th Avicenna Open Masters 2018"]
[Site "Avicenna"]
[Date "2018.08.17"]
[Round "1"]
[White "Lorparizangeneh, Shahin"]
[Black "Tahmasebi, Hamid"]
[Result "0-1"]
[ECO "A05"]
[WhiteElo "2497"]
[BlackElo "2231"]
[Annotator "ChessBase"]
[PlyCount "70"]
[EventDate "2018.08.17"]
[EventType "swiss"]
[EventCountry "IRI"]
[SourceTitle "playchess.com"]
[Source "ChessBase"]
[SourceQuality "1"]
[TimeControl "5400+30"]

1. Nf3 {[%emt 0:00:00]} Nf6 {[%emt 0:00:00]} 2. d4 {[%emt 0:00:24]} e6 {[%emt 0:00:00]} 3. Bf4 {[%emt 0:02:01]} c5 {[%emt 0:02:38]} 4. e3 {[%emt 0:00:14]} Nc6 {[%emt 0:02:15]} 5. Nbd2 {[%emt 0:04:40]} d5 {[%emt 0:05:04]} 6. c3 {[%emt 0:00:26]} Qb6 {[%emt 0:03:18]} 7. Rb1 {[%emt 0:02:04]} a5 {[%emt 0:04:53]} 8. a4 {[%emt 0:09:12]} Nh5 {[%emt 0:08:04]} 9. Be5 {[%emt 0:03:16]} f6 {[%emt 0:15:29]} 10. Bg3 {[%emt 0:07:05]} g5 {[%emt 0:14:20]} 11. Ng1 {[%emt 0:12:47]} Nxg3 {[%emt 0:08:40]} 12. hxg3 {[%emt 0:00:11]} Qc7 {[%emt 0:00:33]} 13. Bd3 {[%emt 0:03:20]} Qg7 {[%emt 0:01:35]} 14. Qh5+ {[%emt 0:04:40]} Kd8 {[%emt 0:00:21]} 15. Ne2 {[%emt 0:03:14]} Bd7 {[%emt 0:03:44]} 16. dxc5 {[%emt 0:09:51]} Bxc5 {[%emt 0:13:21]} 17. Nd4 {[%emt 0:03:19]} Nxd4 {[%emt 0:07:52]} 18. exd4 {[%emt 0:00:21]} Bd6 {[%emt 0:00:05]} 19. Ra1 {[%emt 0:07:21]} g4 {[%emt 0:02:27]} 20. Nf1 {[%emt 0:05:04]} f5 {[%emt 0:01:19]} 21. Ne3 {[%emt 0:00:17]} Be7 {[%emt 0:01:59]} 22. Ke2 {[%emt 0:13:27]} Be8 {[%emt 0:01:48]} 23. Qh6 {[%emt 0:00:51]} Qg8 {[%emt 0:00:47]} 24. Qf4 {[%emt 0:01:38]} Qf8 {[%emt 0:00:01]} 25. c4 {[%emt 0:01:29]} h6 {[%emt 0:00:46]} 26. Nc2 {[%emt 0:02:53]} Bg5 {[%emt 0:00:56]} 27. Qe5 {[%emt 0:00:04]} Bd7 {[%emt 0:00:15]} 28. Kf1 {[%emt 0:01:36]} Bf6 {[%emt 0:00:40]} 29. Qe3 {[%emt 0:00:13]} h5 {[%emt 0:00:44]} 30. cxd5 {[%emt 0:02:01]} exd5 {[%emt 0:00:08]} 31. Qf4 {[%emt 0:00:06]} Rc8 {[%emt 0:00:56]} 32. Bxf5 {[%emt 0:00:33]} Bg7 {[%emt 0:00:30]} 33. Bd3 {[%emt 0:00:45]} Qxf4 {[%emt 0:00:29]} 34. gxf4 {[%emt 0:00:01]} h4 {[%emt 0:00:08]} 35. Ke2 {[%emt 0:01:31]} Rh6 {[%emt 0:00:01]} 0-1

[Event "15th Avicenna Open Masters 2018"]
[Site "Avicenna"]
[Date "2018.08.17"]
[Round "1"]
[White "Mousavi, Seyed Khalil"]
[Black "Khamisi, S Jafar"]
[Result "1-0"]
[ECO "D00"]
[WhiteElo "2458"]
[BlackElo "2219"]
[Annotator "RC"]
[PlyCount "61"]
[EventDate "2018.08.17"]
[EventType "swiss"]
[EventCountry "IRI"]
[SourceTitle "playchess.com"]
[Source "ChessBase"]
[SourceQuality "1"]
[TimeControl "5400+30"]

1. d4 {[%emt 0:00:00]} d5 {[%emt 0:00:05]} 2. Bf4 {[%emt 0:00:00]} Nf6 {[%emt 0:00:28]} 3. e3 {[%emt 0:00:10]} c5 {[%emt 0:02:10]} 4. c3 {[%emt 0:04:41]} Qb6 {[%emt 0:03:22]} 5. Qb3 {[%emt 0:08:44]} Nc6 {[%emt 0:01:14]} 6. Nd2 {[%emt 0:08:44]} g6 {[%emt 0:05:17]} 7. Qxb6 {[%emt 0:06:47]} axb6 {[%emt 0:00:14]} 8. Bc7 {[%emt 0:02:39]} Nd7 {[%emt 0:02:36]} 9. Bb5 {[%emt 0:04:19]} Bg7 {[%emt 0:18:33]} 10. Ngf3 {[%emt 0:01:20]} O-O {[%emt 0:00:36]} 11. O-O {[%emt 0:00:56]} e6 {[%emt 0:10:48]} 12. Rfe1 {[%emt 0:14:03]} Bf6 {[%emt 0:03:28]} 13. a4 {[%emt 0:04:44]} Bd8 {[%emt 0:06:44]} 14. Bd6 {[%emt 0:01:34]} Be7 {[%emt 0:00:57]} 15. Bxe7 {[%emt 0:01:21]} Nxe7 {[%emt 0:00:19]} 16. e4 {[%emt 0:02:19]} Nb8 {[%emt 0:08:14]} 17. exd5 {[%emt 0:05:04]} Nxd5 {[%emt 0:00:20]} 18. Ne4 {[%emt 0:00:51]} cxd4 {[%emt 0:02:43]} 19. Nxd4 {[%emt 0:02:32]} Na6 {[%emt 0:07:37]} 20. Bc4 {[%emt 0:08:46]} Nac7 {[%emt 0:01:53]} 21. Nb5 {[%emt 0:02:45]} Kg7 {[%emt 0:14:20]} 22. Red1 {[%emt 0:04:25]} Nxb5 {[%emt 0:04:05]} 23. Bxb5 {[%emt 0:00:31]} Nc7 {[%emt 0:00:26]} 24. c4 {[%emt 0:03:23]} e5 {[%emt 0:00:55]} 25. Nc3 {[%emt 0:01:21]} Be6 {[%emt 0:03:26]} 26. Rd6 {[%emt 0:00:54]} Nxb5 {[%emt 0:00:37]} 27. cxb5 {[%emt 0:00:06]} Rfd8 {[%emt 0:00:26]} 28. Rxb6 {[%emt 0:06:04]} Rd2 {[%emt 0:00:09]} 29. Rxb7 {[%emt 0:00:33]} Rxb2 {[%emt 0:00:10]} 30. Rc7 {[%emt 0:00:41]} Rb4 {[%emt 0:01:35]} 31. a5 {[%emt 0:01:32]} 1-0

[Event "15th Avicenna Open Masters 2018"]
[Site "Avicenna"]
[Date "2018.08.17"]
[Round "1"]
[White "Tahbaz, Arash"]
[Black "Ghorbani, Hadi"]
[Result "1-0"]
[ECO "D02"]
[WhiteElo "2449"]
[BlackElo "2211"]
[Annotator "NA"]
[PlyCount "109"]
[EventDate "2018.08.17"]
[EventType "swiss"]
[EventCountry "IRI"]
[SourceTitle "playchess.com"]
[Source "ChessBase"]
[SourceQuality "1"]
[TimeControl "5400+30"]

1. d4 {[%emt 0:01:43]} d5 {[%emt 0:00:36]} 2. Nf3 {[%emt 0:00:18]} Nf6 {[%emt 0:00:10]} 3. c4 {[%emt 0:01:22]} c6 {[%emt 0:00:21]} 4. Qb3 {[%emt 0:00:31]} dxc4 {[%emt 0:02:26]} 5. Qxc4 {[%emt 0:00:02]} Be6 {[%emt 0:00:11]} 6. Qc2 {[%emt 0:00:24]} Bg4 {[%emt 0:02:20]} 7. Nc3 {[%emt 0:03:10]} e6 {[%emt 0:01:13]} 8. Qb3 {[%emt 0:01:25]} Qb6 {[%emt 0:00:26]} 9. e4 {[%emt 0:00:14]} Qxb3 {[%emt 0:01:46]} 10. axb3 {[%emt 0:00:02]} Bb4 {[%emt 0:00:34]} 11. Nd2 {[%emt 0:06:36]} Bh5 {[%emt 0:02:23]} 12. f3 {[%emt 0:00:22]} Bg6 {[%emt 0:00:18]} 13. Nc4 {[%emt 0:00:16]} Nbd7 {[%emt 0:01:29]} 14. Be3 {[%emt 0:06:13]} O-O {[%emt 0:01:36]} 15. Na5 {[%emt 0:00:48]} Bxa5 {[%emt 0:14:17]} 16. Rxa5 {[%emt 0:00:01]} b6 {[%emt 0:00:33]} 17. Ra6 {[%emt 0:01:05]} e5 {[%emt 0:00:26]} 18. Be2 {[%emt 0:00:42]} exd4 {[%emt 0:00:16]} 19. Bxd4 {[%emt 0:00:01]} c5 {[%emt 0:00:33]} 20. Be3 {[%emt 0:00:24]} Nb8 {[%emt 0:00:06]} 21. Ra1 {[%emt 0:03:26]} Nc6 {[%emt 0:01:09]} 22. Rd1 {[%emt 0:01:22]} Rfd8 {[%emt 0:03:59]} 23. Kf2 {[%emt 0:02:04]} Na5 {[%emt 0:05:37]} 24. Bc4 {[%emt 0:02:55]} Nxc4 {[%emt 0:02:34]} 25. bxc4 {[%emt 0:00:03]} Nd7 {[%emt 0:00:26]} 26. Rd5 {[%emt 0:01:48]} Nf8 {[%emt 0:01:55]} 27. Rxd8 {[%emt 0:01:55]} Rxd8 {[%emt 0:00:05]} 28. Ra1 {[%emt 0:00:03]} Rd7 {[%emt 0:01:10]} 29. Ra6 {[%emt 0:00:02]} f5 {[%emt 0:00:19]} 30. e5 {[%emt 0:01:44]} Bf7 {[%emt 0:02:08]} 31. b3 {[%emt 0:00:01]} Rd3 {[%emt 0:00:23]} 32. Nb5 {[%emt 0:00:01]} Rxb3 {[%emt 0:01:34]} 33. Nd6 {[%emt 0:00:02]} Be6 {[%emt 0:05:33]} 34. Rxa7 {[%emt 0:00:22]} h6 {[%emt 0:02:47]} 35. g4 {[%emt 0:06:57]} fxg4 {[%emt 0:08:17]} 36. f4 {[%emt 0:00:01]} Rb2+ {[%emt 0:00:16]} 37. Ke1 {[%emt 0:01:10]} Rb1+ {[%emt 0:06:17]} 38. Kd2 {[%emt 0:00:23]} Rf1 {[%emt 0:03:30]} 39. Ra8 {[%emt 0:04:19]} h5 {[%emt 0:01:12]} 40. Ne4 {[%emt 0:00:23]} Bxc4 {[%emt 0:06:03]} 41. Ng3 {[%emt 0:11:29]} Rb1 {[%emt 0:00:45]} 42. f5 {[%emt 0:00:23]} Kf7 {[%emt 0:04:04]} 43. Ra7+ {[%emt 0:00:12]} Kg8 {[%emt 0:00:27]} 44. Nxh5 {[%emt 0:03:49]} Bf7 {[%emt 0:00:40]} 45. Nf4 {[%emt 0:00:11]} Rb2+ {[%emt 0:01:23]} 46. Kc1 {[%emt 0:00:01]} Rxh2 {[%emt 0:00:48]} 47. Ra8 {[%emt 0:00:41]} Ra2 {[%emt 0:03:43]} 48. Rb8 {[%emt 0:01:09]} Ra3 {[%emt 0:00:51]} 49. Kd2 {[%emt 0:02:40]} Ra2+ {[%emt 0:00:21]} 50. Ke1 {[%emt 0:00:01]} Ra1+ {[%emt 0:00:18]} 51. Kf2 {[%emt 0:00:47]} Ra2+ {[%emt 0:00:07]} 52. Kg1 {[%emt 0:00:14]} Ra1+ {[%emt 0:02:21]} 53. Kg2 {[%emt 0:00:02]} Ra4 {[%emt 0:04:39]} 54. Ne6 {[%emt 0:00:17]} Ra2+ {[%emt 0:03:56]} 55. Kg3 {[%emt 0:00:59]} 1-0

[Event "15th Avicenna Open Masters 2018"]
[Site "Avicenna"]
[Date "2018.08.17"]
[Round "1"]
[White "Asgarizadeh, Ahmad"]
[Black "Pilvaieh, Ali"]
[Result "1-0"]
[ECO "B24"]
[WhiteElo "2416"]
[BlackElo "2201"]
[Annotator "ChessBase"]
[PlyCount "95"]
[EventDate "2018.08.17"]
[EventType "swiss"]
[EventCountry "IRI"]
[SourceTitle "playchess.com"]
[Source "ChessBase"]
[SourceQuality "1"]
[TimeControl "5400+30"]

1. e4 c5 2. Nc3 Nc6 3. Bb5 Nd4 4. Nf3 g6 5. Nxd4 cxd4 6. Ne2 Bg7 7. O-O Nf6 8. d3 O-O {[%emt 0:20:56]} 9. c3 {[%emt 0:29:34]} dxc3 {[%emt 0:09:00]} 10. bxc3 {[%emt 0:01:36]} d6 {[%emt 0:12:11]} 11. Ba4 {[%emt 0:02:15]} Bd7 {[%emt 0:01:50]} 12. Bb3 {[%emt 0:05:51]} Bb5 {[%emt 0:00:49]} 13. Rb1 {[%emt 0:00:30]} Ba6 {[%emt 0:00:30]} 14. f4 {[%emt 0:23:30]} Nd7 {[%emt 0:08:55]} 15. Be3 {[%emt 0:00:30]} Rc8 {[%emt 0:00:30]} 16. c4 {[%emt 0:00:30]} Qa5 {[%emt 0:00:30]} 17. f5 {[%emt 0:00:30]} b5 {[%emt 0:00:30]} 18. cxb5 {[%emt 0:00:30]} Bxb5 {[%emt 0:00:30]} 19. fxg6 {[%emt 0:00:30]} hxg6 {[%emt 0:00:30]} 20. Bxf7+ {[%emt 0:00:30]} Rxf7 {[%emt 0:00:30]} 21. Qb3 {[%emt 0:00:30]} Bc4 {[%emt 0:00:30]} 22. dxc4 {[%emt 0:00:30]} Rb8 {[%emt 0:00:30]} 23. Qc2 {[%emt 0:00:30]} Rxf1+ {[%emt 0:00:30]} 24. Kxf1 {[%emt 0:00:30]} Rxb1+ {[%emt 0:00:30]} 25. Qxb1 {[%emt 0:00:30]} Nc5 {[%emt 0:00:30]} 26. Qc2 {[%emt 0:00:30]} Be5 {[%emt 0:00:30]} 27. h3 {[%emt 0:00:30]} Qa6 {[%emt 0:00:30]} 28. Nf4 {[%emt 0:00:30]} Bxf4 {[%emt 0:00:30]} 29. Bxf4 {[%emt 0:00:30]} e5 {[%emt 0:00:30]} 30. Be3 {[%emt 0:00:30]} Qc6 {[%emt 0:00:30]} 31. Bxc5 {[%emt 0:00:30]} Qxc5 {[%emt 0:00:30]} 32. Qd3 {[%emt 0:00:30]} Kg7 {[%emt 0:00:30]} 33. Ke2 {[%emt 0:00:30]} a5 {[%emt 0:00:30]} 34. Kf3 {[%emt 0:00:30]} Kf6 {[%emt 0:00:30]} 35. Kg3 {[%emt 0:00:30]} Ke7 {[%emt 0:00:30]} 36. h4 {[%emt 0:00:30]} Qb4 {[%emt 0:00:30]} 37. Kf3 {[%emt 0:00:30]} Qe1 {[%emt 0:00:30]} 38. g3 {[%emt 0:00:30]} a4 {[%emt 0:00:30]} 39. Kg4 {[%emt 0:00:30]} a3 {[%emt 0:00:30]} 40. Kg5 {[%emt 0:00:30]} Kf7 {[%emt 0:00:30]} 41. Qd5+ {[%emt 0:00:30]} Ke7 {[%emt 0:00:30]} 42. Qb7+ {[%emt 0:00:30]} Kd8 {[%emt 0:00:30]} 43. Qb8+ {[%emt 0:00:30]} Kd7 {[%emt 0:00:30]} 44. Qb7+ {[%emt 0:00:30]} Kd8 {[%emt 0:00:30]} 45. Kf6 {[%emt 0:00:30]} Qf1+ {[%emt 0:00:30]} 46. Ke6 {[%emt 0:00:30]} Qxc4+ {[%emt 0:00:30]} 47. Kxd6 {[%emt 0:00:30]} Qd4+ {[%emt 0:00:30]} 48. Ke6 {[%emt 0:00:30]} 1-0

[Event "15th Avicenna Open Masters 2018"]
[Site "Avicenna"]
[Date "2018.08.17"]
[Round "1"]
[White "Khatibi, Meysam"]
[Black "Matinian, Nikita"]
[Result "1/2-1/2"]
[ECO "B07"]
[WhiteElo "2233"]
[BlackElo "2506"]
[Annotator "ChessBase"]
[PlyCount "139"]
[EventDate "2018.08.17"]
[EventType "swiss"]
[EventCountry "IRI"]
[SourceTitle "playchess.com"]
[Source "ChessBase"]
[SourceQuality "1"]
[TimeControl "5400+30"]

1. e4 {[%emt 0:00:00]} d6 {[%emt 0:00:00]} 2. d4 {[%emt 0:00:00]} Nf6 {[%emt 0:00:00]} 3. Nc3 {[%emt 0:00:04]} g6 {[%emt 0:00:00]} 4. Bg5 {[%emt 0:03:38]} Bg7 {[%emt 0:00:39]} 5. Qd2 {[%emt 0:00:07]} h6 {[%emt 0:00:05]} 6. Bh4 {[%emt 0:00:03]} O-O {[%emt 0:03:26]} 7. f4 {[%emt 0:09:17]} e5 {[%emt 0:02:17]} 8. Nf3 {[%emt 0:27:11]} exd4 {[%emt 0:08:27]} 9. Qxd4 {[%emt 0:01:00]} Nc6 {[%emt 0:00:06]} 10. Qd3 {[%emt 0:00:29]} Be6 {[%emt 0:02:45]} 11. O-O-O {[%emt 0:06:46]} Qc8 {[%emt 0:06:24]} 12. a3 {[%emt 0:12:02]} Rb8 {[%emt 0:07:11]} 13. Re1 {[%emt 0:09:44]} b5 {[%emt 0:07:23]} 14. Nd5 {[%emt 0:02:45]} Bxd5 {[%emt 0:09:31]} 15. exd5 {[%emt 0:00:02]} Na5 {[%emt 0:00:08]} 16. f5 {[%emt 0:12:56]} Qxf5 {[%emt 0:03:07]} 17. Qxf5 {[%emt 0:00:29]} gxf5 {[%emt 0:00:04]} 18. Bxf6 {[%emt 0:05:59]} Bxf6 {[%emt 0:00:05]} 19. c3 {[%emt 0:00:05]} Nc4 {[%emt 0:00:47]} 20. Kc2 {[%emt 0:01:38]} Kg7 {[%emt 0:07:48]} 21. Bxc4 {[%emt 0:03:46]} bxc4 {[%emt 0:00:10]} 22. Nd2 {[%emt 0:00:01]} Rb5 {[%emt 0:00:33]} 23. Nxc4 {[%emt 0:00:05]} Rxd5 {[%emt 0:00:08]} 24. Rhf1 {[%emt 0:00:11]} Kg6 {[%emt 0:01:28]} 25. Re3 {[%emt 0:02:25]} Be5 {[%emt 0:03:14]} 26. g3 {[%emt 0:00:42]} Re8 {[%emt 0:01:12]} 27. b4 {[%emt 0:00:34]} Re6 {[%emt 0:00:38]} 28. Ref3 {[%emt 0:00:25]} Bf6 {[%emt 0:01:00]} 29. Ne3 {[%emt 0:00:06]} Rde5 {[%emt 0:00:18]} 30. Kd3 {[%emt 0:01:33]} c6 {[%emt 0:01:57]} 31. R1f2 {[%emt 0:00:33]} h5 {[%emt 0:02:52]} 32. Nxf5 {[%emt 0:00:24]} Re1 {[%emt 0:01:40]} 33. Ne3 {[%emt 0:00:36]} Rc1 {[%emt 0:02:49]} 34. Rc2 {[%emt 0:00:28]} Ra1 {[%emt 0:00:43]} 35. g4 {[%emt 0:00:46]} h4 {[%emt 0:00:53]} 36. g5 {[%emt 0:00:22]} Bxg5 {[%emt 0:00:18]} 37. Rg2 {[%emt 0:00:14]} Re5 {[%emt 0:04:10]} 38. Nc4 {[%emt 0:00:54]} Rd5+ {[%emt 0:00:08]} 39. Kc2 {[%emt 0:00:00]} Ra2+ {[%emt 0:00:21]} 40. Nb2 {[%emt 0:00:06]} Rxa3 {[%emt 0:00:18]} 41. Rff2 {[%emt 0:01:13]} a5 {[%emt 0:00:47]} 42. Nc4 {[%emt 0:00:20]} Ra2+ {[%emt 0:00:05]} 43. Kb3 {[%emt 0:00:01]} Rxf2 {[%emt 0:00:09]} 44. Rxf2 {[%emt 0:00:03]} axb4 {[%emt 0:00:06]} 45. cxb4 {[%emt 0:00:03]} f6 {[%emt 0:01:21]} 46. Na5 {[%emt 0:00:07]} c5 {[%emt 0:02:17]} 47. b5 {[%emt 0:00:01]} Rd3+ {[%emt 0:00:06]} 48. Kb2 {[%emt 0:01:36]} Rd2+ {[%emt 0:06:27]} 49. Rxd2 {[%emt 0:00:01]} Bxd2 {[%emt 0:00:02]} 50. Nc6 {[%emt 0:00:17]} Kg5 {[%emt 0:00:27]} 51. h3 {[%emt 0:02:26]} d5 {[%emt 0:00:25]} 52. Ne7 {[%emt 0:00:44]} d4 {[%emt 0:01:05]} 53. Nd5 {[%emt 0:00:32]} Ba5 {[%emt 0:00:30]} 54. Kb3 {[%emt 0:00:26]} d3 {[%emt 0:00:17]} 55. b6 {[%emt 0:00:12]} c4+ {[%emt 0:01:42]} 56. Kxc4 {[%emt 0:00:02]} d2 {[%emt 0:01:14]} 57. b7 {[%emt 0:00:15]} d1=Q {[%emt 0:00:11]} 58. b8=Q {[%emt 0:00:02]} Qe2+ {[%emt 0:00:53]} 59. Kd4 {[%emt 0:00:17]} Qd2+ {[%emt 0:00:16]} 60. Kc4 {[%emt 0:00:14]} Qa2+ {[%emt 0:02:30]} 61. Kd4 {[%emt 0:00:04]} Qa4+ {[%emt 0:00:05]} 62. Kd3 {[%emt 0:00:47]} Qd1+ {[%emt 0:02:36]} 63. Kc4 {[%emt 0:00:01]} Qf1+ {[%emt 0:02:42]} 64. Kd4 {[%emt 0:00:02]} Qf2+ {[%emt 0:00:42]} 65. Kc4 {[%emt 0:00:28]} Qc2+ {[%emt 0:02:40]} 66. Kd4 {[%emt 0:00:02]} Bd2 {[%emt 0:01:14]} 67. Qg8+ {[%emt 0:00:52]} Qg6 {[%emt 0:00:03]} 68. Qxg6+ {[%emt 0:01:07]} Kxg6 {[%emt 0:00:04]} 69. Nxf6 {[%emt 0:00:06]} Kxf6 {[%emt 0:00:02]} 70. Ke4 {[%emt 0:00:06]} 1/2-1/2

[Event "15th Avicenna Open Masters 2018"]
[Site "Avicenna"]
[Date "2018.08.17"]
[Round "1"]
[White "Sedaghati, Mehrdad"]
[Black "Pavlov, Sergey"]
[Result "1/2-1/2"]
[ECO "B05"]
[WhiteElo "2228"]
[BlackElo "2496"]
[Annotator "ChessBase"]
[PlyCount "120"]
[EventDate "2018.08.17"]
[EventType "swiss"]
[EventCountry "IRI"]
[SourceTitle "playchess.com"]
[Source "ChessBase"]
[SourceQuality "1"]
[TimeControl "5400+30"]

1. e4 {[%emt 0:01:29]} Nf6 {[%emt 0:00:00]} 2. e5 {[%emt 0:00:56]} Nd5 {[%emt 0:00:00]} 3. d4 {[%emt 0:00:12]} d6 {[%emt 0:00:14]} 4. Nf3 {[%emt 0:00:06]} Bg4 {[%emt 0:00:20]} 5. Be2 {[%emt 0:00:38]} c6 {[%emt 0:00:15]} 6. O-O {[%emt 0:00:59]} Bxf3 {[%emt 0:01:20]} 7. Bxf3 {[%emt 0:00:05]} dxe5 {[%emt 0:00:13]} 8. dxe5 {[%emt 0:00:06]} e6 {[%emt 0:00:11]} 9. a3 {[%emt 0:06:55]} Nd7 {[%emt 0:01:32]} 10. Re1 {[%emt 0:03:43]} Qc7 {[%emt 0:00:47]} 11. Qe2 {[%emt 0:00:12]} Bc5 {[%emt 0:08:49]} 12. c3 {[%emt 0:08:04]} a5 {[%emt 0:05:08]} 13. Bxd5 {[%emt 0:11:28]} cxd5 {[%emt 0:01:37]} 14. Nd2 {[%emt 0:02:58]} O-O {[%emt 0:05:53]} 15. a4 {[%emt 0:03:20]} f6 {[%emt 0:10:41]} 16. exf6 {[%emt 0:00:33]} Rxf6 {[%emt 0:06:27]} 17. Nf3 {[%emt 0:00:38]} e5 {[%emt 0:00:59]} 18. Be3 {[%emt 0:02:03]} e4 {[%emt 0:05:19]} 19. Nd4 {[%emt 0:01:06]} Ne5 {[%emt 0:02:41]} 20. Qh5 {[%emt 0:06:31]} Raf8 {[%emt 0:06:49]} 21. Rf1 {[%emt 0:05:35]} Bxd4 {[%emt 0:12:12]} 22. Bxd4 {[%emt 0:00:09]} Rf5 {[%emt 0:00:12]} 23. Bxe5 {[%emt 0:02:01]} Qxe5 {[%emt 0:00:14]} 24. Qe2 {[%emt 0:00:12]} Rh5 {[%emt 0:03:27]} 25. f4 {[%emt 0:16:35]} exf3 {[%emt 0:02:04]} 26. Qxe5 {[%emt 0:00:06]} Rxe5 {[%emt 0:00:06]} 27. Rxf3 {[%emt 0:01:40]} Rxf3 {[%emt 0:00:56]} 28. gxf3 {[%emt 0:00:01]} Re2 {[%emt 0:02:03]} 29. Rb1 {[%emt 0:03:29]} Rc2 {[%emt 0:06:37]} 30. b4 {[%emt 0:00:15]} axb4 {[%emt 0:01:02]} 31. Rxb4 {[%emt 0:00:08]} Rxc3 {[%emt 0:00:20]} 32. Rxb7 {[%emt 0:01:14]} Rxf3 {[%emt 0:01:00]} 33. Rd7 {[%emt 0:00:24]} Ra3 {[%emt 0:00:45]} 34. Rxd5 {[%emt 0:00:10]} Rxa4 {[%emt 0:00:05]} 35. Kg2 {[%emt 0:00:12]} Rg4+ {[%emt 0:01:31]} 36. Kf3 {[%emt 0:00:13]} Rg1 {[%emt 0:00:24]} 37. Rd7 {[%emt 0:00:30]} h6 {[%emt 0:01:21]} 38. Ra7 {[%emt 0:00:18]} Kh7 {[%emt 0:00:11]} 39. Ra6 {[%emt 0:00:02]} h5 {[%emt 0:00:58]} 40. Rb6 {[%emt 0:00:58]} g6 {[%emt 0:00:52]} 41. Rb4 {[%emt 0:00:35]} Rf1+ {[%emt 0:01:28]} 42. Kg3 {[%emt 0:00:27]} g5 {[%emt 0:00:20]} 43. Rb6 {[%emt 0:02:52]} Kg7 {[%emt 0:00:13]} 44. h4 {[%emt 0:03:46]} g4 {[%emt 0:00:29]} 45. Rb5 {[%emt 0:00:15]} Kg6 {[%emt 0:00:25]} 46. Rb6+ {[%emt 0:00:17]} Rf6 {[%emt 0:01:46]} 47. Rb3 {[%emt 0:00:01]} Rc6 {[%emt 0:01:11]} 48. Kf4 {[%emt 0:00:31]} Rc4+ {[%emt 0:00:51]} 49. Kg3 {[%emt 0:00:04]} Rc5 {[%emt 0:01:01]} 50. Kf4 {[%emt 0:00:12]} Rf5+ {[%emt 0:00:30]} 51. Kg3 {[%emt 0:00:05]} Kf6 {[%emt 0:00:21]} 52. Rb6+ {[%emt 0:02:48]} Ke5 {[%emt 0:01:05]} 53. Rh6 {[%emt 0:00:10]} Ke4 {[%emt 0:01:20]} 54. Re6+ {[%emt 0:00:27]} Re5 {[%emt 0:02:21]} 55. Rh6 {[%emt 0:02:17]} Ra5 {[%emt 0:02:08]} 56. Rh8 {[%emt 0:01:11]} Ra3+ {[%emt 0:01:23]} 57. Kg2 {[%emt 0:00:01]} Rd3 {[%emt 0:02:23]} 58. Rxh5 {[%emt 0:01:39]} Kf4 {[%emt 0:00:09]} 59. Ra5 {[%emt 0:00:05]} Rd2+ {[%emt 0:00:17]} 60. Kg1 {[%emt 0:00:12]} Kg3 {[%emt 0:00:30]} 1/2-1/2